[Event "Charlotte GM-A May 2022"]
[Site "Charlotte"]
[Date "2022.05.05"]
[Round "2.2"]
[White "Belous, Vladimir"]
[Black "Liang, Jason"]
[Result "1/2-1/2"]
[ECO "A13"]
[WhiteElo "2525"]
[BlackElo "2432"]
[Annotator "TA"]
[PlyCount "84"]
[EventDate "2022.05.04"]
[EventType "tourn"]
[EventCountry "USA"]
[SourceTitle "playchess.com"]
[Source "ChessBase"]
[SourceQuality "1"]
[TimeControl "5400+30"]

{[%evp 9,84,7,10,6,6,0,9,-15,0,0,0,-49,-45,-35,0,0,0,0,0,0,0,0,8,-95,52,54,56,36,38,41,38,45,57,16,116,115,108,106,86,89,66,-120,-108,-120,0,-16,0,-218,-205,-180,-187,-370,-91,-290,-292,-395,-387,-392,-375,-73,0,0,0,0,0,0,0,0,0,0,0,0,0,0,0,0,0]} 1. c4 {[%emt 0:00:06]} e6 {[%emt 0:00:09]} 2. Nf3 {[%emt 0:00:05]} d5 {[%emt 0:00:08]} 3. e3 {[%emt 0:00:05]} Nf6 {[%emt 0:00:12]} 4. b3 {[%emt 0:00:07]} b6 {[%emt 0:00:57]} 5. Bb2 {[%emt 0:00:12]} Bb7 {[%emt 0:00:18]} 6. Nc3 {[%emt 0:00:07] A13: English Opening: 1...e6.} Nbd7 {[%emt 0:00:21]} 7. cxd5 {[%emt 0:00:51]} exd5 {[%emt 0:00:25]} 8. Be2 {[%emt 0:01:04]} a6 {[%emt 0:01:37]} 9. Qc2 {[%emt 0:01:11]} Bd6 {[%emt 0:01:34] [#]} 10. O-O-O $146 {[%emt 0:05:16]} (10. Rc1 $11 {is more appropriate.}) ({Predecessor:} 10. Qf5 Qe7 11. O-O g6 12. Qh3 h5 13. Rfe1 h4 14. e4 dxe4 15. Nxe4 Bxe4 16. Bd3 Bxd3 17. Rxe7+ Bxe7 {1-0 (78) Duda,J (2743)-So,W (2770) chess24.com INT 2021}) 10... c5 $15 {[%emt 0:08:21]} 11. g4 {[%emt 0:05:06][%cal Bg2g4,Bg4g5][%mdl 32]} Rc8 {[%emt 0:11:56]} 12. g5 {[%emt 0:05:00]} Ne4 {[%emt 0:02:58]} 13. Rhg1 {[%emt 0:00:49]} b5 {[%emt 0:07:56]} 14. Nh4 {[%emt 0:04:38] Hoping for Nf5.} Be5 {[%emt 0:14:11]} (14... Nxf2 15. Rdf1 $18) 15. Nf5 {[%emt 0:09:45]} O-O {[%emt 0:02:26]} (15... Bxh2 $2 16. Nxe4 dxe4 17. Rg4 $18 (17. Nxg7+ Kf8 $16) (17. Bxg7 Rg8 $16)) (15... Nxg5 $2 16. f4 g6 17. fxe5 (17. fxg5 gxf5 18. Qxf5 Qe7 $14) 17... gxf5 18. Qxf5 $18) 16. f3 {[%emt 0:13:15]} (16. f4 $11 Bxc3 17. dxc3 (17. Bxc3 d4 $11)) 16... Nxc3 {[%emt 0:45:01]} (16... Nxg5 $2 17. f4 d4 18. Rxg5 $18 (18. fxe5 Nxe5 19. Kb1 d3 $14)) (16... Nd6 $1 $17 {And now ...Nxf5 would win.} 17. f4 Nxf5 18. Qxf5 Bxc3 19. dxc3 c4) 17. dxc3 $14 {[%emt 0:00:04] Strongly threatening f4.} c4 {[%emt 0:00:00]} 18. bxc4 {[%emt 0:00:05]} bxc4 {[%emt 0:00:00]} 19. f4 {[%emt 0:05:13]} Bb8 {[%emt 0:00:00]} 20. Ba3 {[%emt 0:02:50] aiming for Ne7+.} Re8 {[%emt 0:00:00][%cal Bf8e8,Be8e3,Be3d3][%mdl 32] Prevents Ne7+.} 21. Bf3 {[%emt 0:07:24]} (21. Rg3 $5 {[%cal Rg3h3]}) 21... g6 {[%emt 0:00:00] [#]} (21... Qa5 $11 22. Kb2 (22. Bb4 Qb6 $14) 22... Nc5) 22. Bxd5 $1 $16 {[%emt 0:04:04] White is much more active.} Bxd5 {[%emt 0:00:00]} 23. Nh6+ {[%emt 0:00:12]} Kg7 {[%emt 0:00:00]} 24. Rxd5 {[%emt 0:00:02]} Rxe3 {[%emt 0:00:00]} 25. Kb1 $2 {[%emt 0:03:08]} (25. Rf1 $1 $14 {keeps the upper hand.} Qc7 26. f5) 25... Rd3 $1 $17 {[%emt 0:00:00] ...Qb6+ is the strong threat.} 26. Rd1 {[%emt 0:05:28]} Bxf4 {[%emt 0:00:00]} (26... Rxd5 $1 $17 27. Rxd5 Bxf4) 27. Nxf7 {[%emt 0:11:24] Dancing on a razor blade.} Kxf7 {[%emt 0:00:00]} 28. R1xd3 {[%emt 0:00:17]} (28. R5xd3 $11 {and White is okay.} cxd3 29. Qxd3) 28... cxd3 $19 {[%emt 0:00:00]} 29. Qxd3 {[%emt 0:00:11]} Qb6+ {[%emt 0:00:00]} 30. Bb4 $2 {[%emt 0:00:01]} (30. Kc2 {was the only chance.} Qf2+ 31. Kd1 Qg1+ 32. Kc2 Qxh2+ 33. Kd1 Qh1+ 34. Kc2 Qh2+ 35. Kd1) 30... Qg1+ $2 {[%emt 0:00:00]} (30... Nf8 $1 $19 {has better winning chances. Threatens to win with ...Ne6.} 31. Ra5 Qb7 32. Rxa6 Ne6) 31. Kc2 $2 {[%emt 0:00:23]} (31. Kb2 $17 Nf8 32. Rd7+ Kg8 33. Qd5+ Kh8 34. Rf7) 31... Nf8 $1 {[%emt 0:07:30]} (31... Qxh2+ 32. Kb3 Nf8 33. Rd7+ $1 {[%mdl 512]} Kg8 34. Qd5+ Kh8 35. Rd8 $18) 32. Rd7+ {[%emt 0:06:18]} Kg8 {[%emt 0:00:00]} 33. Qd5+ {[%emt 0:00:06]} Kh8 {[%emt 0:00:00]} 34. Rf7 $2 {[%emt 0:01:33]} (34. Qd4+ $19 Qxd4 35. Rxd4 Bxh2 36. Rh4) 34... Qc1+ {[%emt 0:00:00]} ({Black should try} 34... Qxh2+ $17 35. Kb3 {[#]} Qd2 $1 36. Qxd2 Bxd2 37. Bxf8 Kg8) 35. Kb3 $11 {[%emt 0:00:03] The position is equal.} Qb1+ {[%emt 0:00:00]} (35... Ne6 $5 36. Rxh7+ (36. Qxe6 $2 Qd1+ 37. Kb2 Bc1+ 38. Kb1 Ba3#) 36... Kxh7 37. Qd7+ Ng7 38. Qh3+ Nh5 39. Qd7+ Kh8 40. Qxc8+ Kh7 41. Qd7+ Ng7 42. Qh3+ Kg8 43. Qc8+ Kh7 44. Qh3+ Nh5 45. Qd7+ Kh8 46. Qe8+ Kh7 47. Qd7+ $11) 36. Ka3 {[%emt 0:03:38] Intending Qd4+ and mate.} Qc1+ {[%emt 0:00:00]} 37. Kb3 {[%emt 0:02:32] Threatening mate with Qd4+.} Ne6 {[%emt 0:00:00] Inhibits Qd4+.} 38. Rxh7+ {[%emt 0:01:31][%mdl 64] Decoy} Kxh7 {[%emt 0:00:00]} 39. Qd7+ {[%emt 0:00:04]} Ng7 {[%emt 0:00:00]} 40. Qh3+ {[%emt 0:00:04]} Nh5 {[%emt 0:00:00]} 41. Qd7+ {[%emt 0:00:04]} Ng7 {[%emt 0:00:00] ( -> ...Qb1+)} 42. Qh3+ {[%emt 0:00:03]} Nh5 {[%emt 0:00:00] And White is the lucky defender.  Weighted Error Value: White=0.44/Black=0.27 (precise)} 1/2-1/2

[Event "Charlotte GM-A May 2022"]
[Site "Charlotte"]
[Date "2022.05.05"]
[Round "2.3"]
[White "Mardov, Dimitar"]
[Black "Sheng, Joshua"]
[Result "1/2-1/2"]
[ECO "D27"]
[WhiteElo "2402"]
[BlackElo "2487"]
[Annotator "TA"]
[PlyCount "34"]
[EventDate "2022.05.04"]
[EventType "tourn"]
[EventCountry "USA"]
[SourceTitle "playchess.com"]
[Source "ChessBase"]
[SourceQuality "1"]
[TimeControl "5400+30"]

{[%evp 20,34,0,0,0,-40,-3,-18,0,-14,0,0,-2,-14,37,17,40]} 1. d4 {[%emt 0:00:02]} d5 {[%emt 0:00:03]} 2. c4 {[%emt 0:00:14]} dxc4 {[%emt 0:00:03]} 3. Nf3 {[%emt 0:00:29]} Nf6 {[%emt 0:00:04]} 4. e3 {[%emt 0:00:51]} e6 {[%emt 0:00:04]} 5. Bxc4 {[%emt 0:00:29]} a6 {[%emt 0:00:02]} 6. a4 {[%emt 0:00:09]} c5 {[%emt 0:00:03]} 7. Nc3 {[%emt 0:00:50]} Nc6 {[%emt 1:33:41]} 8. O-O {[%emt 0:00:34]} Be7 {[%emt 0:00:00]} 9. Ne5 {[%emt 0:08:23]} cxd4 {[%emt 0:00:00]} 10. Nxc6 {[%emt 0:01:10]} bxc6 {[%emt 0:00:00]} 11. exd4 {[%emt 0:00:20]} O-O {[%emt 0:00:00] D27: Queen's Gambit Accepted: Classical main line: 7 e4!? and 7 a4.} 12. b3 {[%emt 0:04:15]} a5 {[%emt 0:00:00]} 13. Be3 {[%emt 0:03:58] [#]} Nd5 $146 {[%emt 0:00:00]} ({Predecessor:} 13... Ba6 14. Qf3 Qb8 15. Rfc1 Rc8 16. h3 Bb7 17. Rd1 c5 18. Qe2 cxd4 19. Bxd4 Bc6 {1-0 (36) Mamedyarov,S (2752)-Nielsen,P (2626) Heraklion 2007}) 14. Rc1 {[%emt 0:03:53]} Ba6 {[%emt 0:00:00]} 15. Ne4 {[%emt 0:05:58]} Qb6 {[%emt 0:00:00]} 16. Qf3 {[%emt 0:04:05]} Qb4 {[%emt 0:00:00]} ({Black should try} 16... Bxc4 $11 17. bxc4 Nxe3 18. fxe3 Qb3) 17. Bd2 $14 {[%emt 0:03:11]} Qb6 {[%emt 0:00:00] Weighted Error Value: White=0.09 (flawless) /Black=0.23 (precise)} 1/2-1/2

[Event "Charlotte GM-A May 2022"]
[Site "Charlotte"]
[Date "2022.05.05"]
[Round "2.4"]
[White "Spicha, K. Alexander"]
[Black "Williams, Justus"]
[Result "1-0"]
[ECO "A48"]
[WhiteElo "2083"]
[BlackElo "2417"]
[Annotator "TA"]
[PlyCount "103"]
[EventDate "2022.05.04"]
[EventType "tourn"]
[EventCountry "USA"]
[SourceTitle "playchess.com"]
[Source "ChessBase"]
[SourceQuality "1"]
[TimeControl "5400+30"]

{[%evp 15,103,-22,2,-16,0,-3,9,0,2,6,34,14,18,20,29,18,23,25,25,17,22,15,20,13,23,18,19,-2,0,-8,-10,0,0,0,8,5,15,4,10,0,0,-59,-91,-60,-62,-59,-64,-150,-158,-157,-157,-146,-144,-153,-157,-151,-136,-161,-162,-167,-152,-137,0,-3,0,-70,-77,-171,17,17,17,18,18,18,14,8,8,8,8,0,0,0,0,0,0,0,29972,29973,29972,29966]} 1. d4 {[%emt 0:02:36]} Nf6 {[%emt 0:02:57]} 2. Nf3 {[%emt 0:00:08]} b6 {[%emt 0:00:21]} 3. Bf4 {[%emt 0:01:36]} Bb7 {[%emt 0:00:17]} 4. e3 {[%emt 0:01:34]} d6 {[%emt 0:01:31]} 5. h3 {[%emt 0:01:48]} g6 {[%emt 0:02:01]} 6. Nbd2 {[%emt 0:05:46]} Bg7 {[%emt 0:01:15]} 7. Bd3 {[%emt 0:02:09]} O-O {[%emt 0:00:53]} 8. O-O {[%emt 0:00:13]} c5 {[%emt 0:00:59]} 9. Qe2 {[%emt 0:01:13] A48: 1 d4 Nf6 2 Nf3 g6: Torre, London and Colle Systems.} Nc6 {[%emt 0:01:24]} 10. c3 {[%emt 0:02:14]} Re8 {[%emt 0:11:24]} 11. Rfd1 {[%emt 0:06:27] The position is equal.} cxd4 {[%emt 0:11:27]} 12. cxd4 {[%emt 0:01:08]} Nd5 {[%emt 0:01:51][%cal Bf6d5,Bd5b6,Bb6a4][%mdl 32]} 13. Bg3 {[%emt 0:01:46] [#]} a6 $146 {[%emt 0:07:41]} ({Predecessor:} 13... Ndb4 14. Bc4 d5 15. Bb5 a6 16. Ba4 b5 17. Bb3 Na5 18. a3 Nbc6 19. Bc2 Qb6 {0-1 (39) Parant,F (2030)-Lane,G (2430) Avoine 1993}) 14. a3 {[%emt 0:03:58]} b5 {[%emt 0:07:59]} 15. Rac1 {[%emt 0:00:53]} Qd7 {[%emt 0:02:08]} 16. e4 {[%emt 0:26:01]} Nb6 {[%emt 0:02:06]} 17. Nb3 {[%emt 0:00:31]} Bh6 {[%emt 0:02:45]} 18. Rc2 {[%emt 0:02:16]} Rec8 {[%emt 0:01:47]} 19. d5 {[%emt 0:02:38]} Nd8 {[%emt 0:00:44][%cal Bc6d8,Bd8b7,Bb7c5,Bc5b3,Bb3c1][%mdl 32]} 20. Na5 {[%emt 0:02:12]} Na4 {[%emt 0:00:47]} 21. Nxb7 {[%emt 0:01:36]} Nxb7 {[%emt 0:02:52]} 22. Rxc8+ {[%emt 0:03:17]} Rxc8 {[%emt 0:00:51]} 23. e5 {[%emt 0:00:04]} Nbc5 {[%emt 0:02:10]} 24. Bb1 {[%emt 0:01:24]} Nb3 {[%emt 0:03:21]} 25. e6 {[%emt 0:08:52]} Qe8 {[%emt 0:02:43]} 26. exf7+ {[%emt 0:03:52]} Qxf7 {[%emt 0:00:11]} 27. Bh4 {[%emt 0:02:42]} Nc1 $1 {[%emt 0:01:40]} 28. Qxe7 {[%emt 0:01:01]} (28. Qf1 $11) 28... Qxe7 $15 {[%emt 0:01:39]} 29. Bxe7 {[%emt 0:00:05]} Nxb2 {[%emt 0:00:19]} 30. Re1 {[%emt 0:03:11]} Nc4 {[%emt 0:00:15]} 31. Be4 {[%emt 0:05:25]} ({Only move:} 31. Re6 $1 $15) 31... Re8 $17 {[%emt 0:04:28]} 32. Bg5 {[%emt 0:00:43]} Bxg5 {[%emt 0:00:34]} 33. Nxg5 {[%emt 0:00:02] [#]} Nd3 {[%emt 0:00:18][%mdl 512]} 34. Ra1 {[%emt 0:05:15]} Nc5 {[%emt 0:00:29] Pair of Knights!} 35. f3 {[%emt 0:00:23]} Kg7 {[%emt 0:01:24]} 36. a4 {[%emt 0:01:02]} b4 {[%emt 0:08:45]} ({Not} 36... bxa4 37. Ne6+ Nxe6 38. dxe6 $17) 37. Ne6+ {[%emt 0:00:05]} Nxe6 {[%emt 0:02:00]} 38. dxe6 $19 {[%emt 0:00:02][%mdl 4096] Endgame [#] KRB-KRN} a5 {[%emt 0:05:19]} (38... Rxe6 $2 39. Bd5 Re5 40. Bxc4 $18) (38... Kf6 $1 $17 {Strongly threatening ...a5.} 39. Rc1 Nd2) 39. Rc1 $11 {[%emt 0:01:31]} Nb6 {[%emt 0:00:02]} 40. Rc7+ {[%emt 0:00:30]} (40. Rc6 $1 $11 Rb8 41. Bc2) 40... Kf6 $15 {[%emt 0:00:11] Threatens to win with ...Re7.} 41. Ra7 {[%emt 0:00:06]} (41. Rb7 $17 d5 42. Rxb6 dxe4 43. f4) 41... Nxa4 $2 {[%emt 0:00:36]} ({Better is} 41... d5 $19 42. Bc2 Nc4 43. Rf7+ Kxe6 44. Rxh7 Kf6) 42. Bc6 $11 {[%emt 0:00:11]} Re7 {[%emt 0:00:51]} 43. Rxe7 {[%emt 0:02:19]} Kxe7 {[%emt 0:00:02]} 44. Bxa4 {[%emt 0:00:06]} Kxe6 {[%emt 0:00:04] KB-KP} 45. f4 {[%emt 0:00:24] Kf2 is the strong threat.} Kd5 {[%emt 0:02:47]} 46. Kf2 {[%emt 0:00:06]} Kc4 {[%emt 0:02:29]} 47. g4 {[%emt 0:00:52]} b3 {[%emt 0:00:07][%cal Bb4b3,Bb3b2][%mdl 32]} 48. f5 {[%emt 0:01:12]} gxf5 {[%emt 0:01:00]} (48... b2 $5 49. Bc2 gxf5 50. gxf5 a4 $11) 49. gxf5 {[%emt 0:00:03] White threatens f6 and mate.} b2 {[%emt 0:00:08]} 50. Bc2 {[%emt 0:00:04] f6 would kill now.} Kd5 $2 {[%emt 0:00:02][%mdl 8192]} (50... a4 $11) 51. Ke3 {[%emt 0:00:48]} a4 {[%emt 0:01:29]} 52. Kd3 {[%emt 0:00:05] Never resign too early!  Weighted Error Value: White=0.15 (very precise) /Black=0.36} 1-0

[Event "Charlotte GM-A May 2022"]
[Site "Charlotte"]
[Date "2022.05.05"]
[Round "2.5"]
[White "Song, Micheal"]
[Black "Stremavicius, Titas"]
[Result "1/2-1/2"]
[ECO "D36"]
[WhiteElo "2408"]
[BlackElo "2508"]
[Annotator "TA"]
[PlyCount "109"]
[EventDate "2022.05.04"]
[EventType "tourn"]
[EventCountry "USA"]
[SourceTitle "playchess.com"]
[Source "ChessBase"]
[SourceQuality "1"]
[TimeControl "5400+30"]

{[%evp 17,109,20,25,24,20,20,26,23,36,41,41,44,75,43,62,53,32,40,39,52,40,26,72,0,0,0,0,0,20,18,21,14,11,15,20,12,17,5,10,0,0,0,0,0,0,0,0,0,0,0,0,0,0,0,0,0,0,0,0,0,0,-7,-4,-20,-25,-25,-8,-8,-8,-8,-8,-8,-8,-8,0,0,0,0,0,0,0,0,0,0,0,0,0,0,0,0,0,0,0,0]} 1. d4 {[%emt 0:00:19]} d5 {[%emt 0:00:12]} 2. c4 {[%emt 0:00:41]} e6 {[%emt 0:00:09]} 3. Nc3 {[%emt 0:00:09]} Nf6 {[%emt 0:00:07]} 4. cxd5 {[%emt 0:00:10]} exd5 {[%emt 0:00:07]} 5. Bg5 {[%emt 0:00:22]} c6 {[%emt 0:01:06]} 6. e3 {[%emt 0:00:39]} Nbd7 {[%emt 0:00:36]} 7. Bd3 {[%emt 0:00:28]} Be7 {[%emt 0:00:08]} 8. Qc2 {[%emt 0:00:19]} h6 {[%emt 0:00:08]} 9. Bh4 {[%emt 0:00:38]} Nh5 {[%emt 0:00:17] Nowadays more popular than 9...0-0.} 10. Bxe7 {[%emt 0:00:15] D36: Queen's Gambit Declined: Exchange Variation: Main line (5 Bg5 c6 6 Qc2).} Qxe7 {[%emt 1:32:40]} 11. O-O-O {[%emt 0:02:48]} Nb6 {[%emt 0:00:30]} 12. Kb1 {[%emt 0:00:53] White has an edge.} g6 {[%emt 0:00:00] [#]} 13. Nf3 $146 {[%emt 0:04:27]} ({Predecessor:} 13. h3 Be6 14. Nf3 Ng7 15. g4 O-O-O 16. a4 Kb8 17. a5 Nd7 18. a6 b6 19. e4 {1-0 (37) Michalik,P (2546)-Kraemer,E (2149) Germany 2017}) 13... Ng7 {[%emt 0:00:00]} 14. Ne5 Nd7 {[%emt 0:00:00]} 15. Nxd7 {White is much more active. The black rooks are badly placed.} Bxd7 {[%emt 0:00:00]} 16. e4 (16. Rhe1 $5 {[%cal Re3e4]}) 16... dxe4 $1 {[%emt 0:00:00]} 17. Bxe4 {aiming for Rhe1.} O-O {[%emt 0:00:00]} 18. d5 Rad8 {[%emt 0:00:00]} 19. Ka1 Qf6 {[%emt 0:00:00]} (19... Bf5 $11) 20. Bf3 (20. f3 $16) 20... Nf5 $11 {[%emt 0:04:30]} 21. Ne4 {[%emt 0:55:22]} Qg7 {[%emt 0:00:00]} 22. Nc5 {[%emt 0:34:00]} Bc8 {[%emt 0:01:00]} 23. dxc6 {[%emt 0:00:00]} bxc6 {[%emt 0:00:00]} 24. Qc3 Nd4 {[%emt 0:01:00]} 25. Be4 {[%emt 0:00:00]} Rfe8 {[%emt 0:00:00]} 26. Rhe1 {[%emt 0:00:00]} Bf5 {[%emt 0:00:00]} 27. Bxf5 {[%emt 0:02:30]} Nxf5 {[%emt 0:00:00]} 28. Rxd8 {[%emt 0:00:00]} Rxd8 {[%emt 0:00:00]} 29. Ne4 {[%emt 0:00:00]} Qxc3 {[%emt 0:00:00]} 30. Nxc3 {[%emt 0:00:00][%mdl 4096] Endgame KRN-KRN} Kf8 {[%emt 0:00:00]} 31. g3 {[%emt 0:00:00] Against Nh4} Nd4 {[%emt 0:00:00] [#] Threatens to win with ...Nc2+.} 32. Rd1 {[%emt 0:00:00]} Nc2+ 33. Kb1 Rxd1+ 34. Nxd1 {[%emt 0:00:00] KN-KN} Nd4 {[%emt 0:00:00]} 35. h4 f5 {[%emt 0:00:00]} 36. Ne3 Ke7 {[%emt 0:00:00]} 37. Kc1 f4 {[%emt 0:06:30]} 38. gxf4 {[%emt 0:00:00]} Ne2+ {[%emt 0:00:00]} 39. Kd2 Nxf4 {[%emt 0:01:00]} 40. Ng4 {[%emt 0:01:09]} h5 {[%emt 0:00:00]} 41. Ne5 {[%emt 0:00:10]} Kd6 {[%emt 0:01:00]} 42. Nf3 {[%emt 0:00:24] The position is equal.} Kd5 {[%emt 0:00:00]} 43. Ke3 Ng2+ 44. Kd3 {[%emt 0:01:45]} a6 {[%emt 0:00:00]} 45. b3 Kc5 {[%emt 0:02:00]} 46. Ke4 {[%emt 0:02:40]} Kb4 {[%emt 0:00:00]} 47. Ke5 Ka3 {[%emt 0:00:00]} 48. Kf6 Kxa2 {[%emt 0:00:00]} 49. Kxg6 Kxb3 {[%emt 0:00:00]} 50. Nd4+ Kc4 {[%emt 0:00:01]} 51. Nxc6 {[%emt 0:01:18]} Kc5 {[%emt 0:00:15]} 52. Na5 {[%emt 0:00:06]} Nxh4+ {[%emt 0:00:30]} 53. Kxh5 {[%emt 0:05:28]} Nf3 {[%emt 0:00:29]} 54. Kg4 Nd2 {[%emt 0:03:15] [#] ( -> ...Kb6)} 55. Kf4 {[%emt 0:00:00] Weighted Error Value: White=0.04 (flawless) /Black=0.03 (flawless)} 1/2-1/2